bitfinex-derivatives/quotes_SOLF0:USTF0_20240918
["timestamp","ask_amount","ask_price","bid_price","bid_amount"]
[1726661336127,5.45,129.34,129.33,3.8654]
[1726661347439,14.94,129.34,129.3,8.58768452]
[1726661347632,9.49,129.33,129.3,12.39195252]
[1726661347839,9.49,129.31,129.3,12.39195252]
[1726661348341,9.49,129.31,129.3,16.25825252]
[1726661349547,11.12,129.31,129.3,16.25825252]
[1726661350439,1.63,129.31,129.3,16.25825252]
[1726661350637,3.82,129.34,129.33,3.8654]
[1726661350846,3.82,129.34,129.33,7.78931711]
[1726661351050,3.82,129.34,129.33,3.8654]
[1726661351547,3.82,129.34,129.33,7.67527974]
[1726661351749,13.31,129.34,129.33,3.80987974]
[1726661352048,13.31,129.34,129.3,8.58768452]
[1726661352245,9.49,129.31,129.3,12.45388452]
[1726661352442,9.49,129.31,129.3,16.39839446]
[1726661352841,9.49,129.31,129.3,12.53219446]
[1726661354739,9.49,129.31,129.3,16.39849446]
[1726661355651,3.82,129.34,129.31,3.866]
[1726661355854,13.31,129.34,129.31,3.866]
[1726661356048,13.31,129.34,129.3,12.53219446]
[1726661356254,13.31,129.34,129.32,3.8657]
[1726661356748,13.31,129.34,129.3,12.53219446]
[1726661356956,13.31,129.34,129.31,3.8659]
[1726661359352,9.49,129.33,129.31,3.8659]
[1726661360140,10.21,129.33,129.31,3.8659]
[1726661361259,14.03,129.33,129.31,3.8659]
[1726661364054,14.03,129.33,129.3,16.39839446]
[1726661368753,9.49,129.31,129.3,12.53219446]
[1726661375056,3.866,129.31,129.3,12.53219446]
[1726661375253,13.356,129.31,129.3,12.53219446]
[1726661379970,17.176,129.31,129.3,12.53219446]
[1726661384267,3.8663,129.3,129.29,9.19898931]
[1726661384463,13.3563,129.3,129.29,9.19898931]
[1726661384875,13.3563,129.3,129.29,12.99108626]
[1726661399886,3.8663,129.3,129.29,12.99108626]
[1726661400182,13.3563,129.3,129.29,12.99108626]
[1726661400784,3.865,129.35,129.29,16.85748626]
[1726661400991,9.49,129.31,129.29,12.99108626]
[1726661401187,17.17261223,129.37,129.29,12.99108626]
[1726661401492,9.49,129.3,129.29,12.99108626]
[1726661401680,13.31,129.3,129.29,12.99108626]
[1726661402982,17.1763,129.3,129.29,12.99108626]
[1726661405796,3.82,129.3,129.29,12.99108626]
[1726661406085,13.31,129.3,129.29,12.99108626]
[1726661407882,17.1763,129.3,129.29,12.99108626]
[1726661409887,1.5072,129.3,129.29,12.99108626]
[1726661410388,1.5072,129.3,129.29,16.85768626]
[1726661411584,10.9972,129.3,129.29,16.85768626]
[1726661411898,10.9972,129.3,129.29,12.99108626]
[1726661414194,11.7172,129.3,129.29,12.99108626]
[1726661421001,11.7172,129.3,129.29,16.85768626]
[1726661421894,10.21,129.3,129.29,16.85768626]
[1726661429605,10.21,129.3,129.29,12.99108626]
[1726661433619,10.21,129.3,129.27,14.2403924]
[1726661433807,9.49,129.28,129.27,14.2403924]
[1726661434511,9.49,129.28,129.27,18.16088078]
[1726661435108,13.3569,129.28,129.27,18.16088078]
[1726661435313,9.49,129.28,129.26,13.23778186]
[1726661435519,9.49,129.27,129.25,12.43217619]
[1726661435709,9.49,129.26,129.25,16.22457439]
[1726661436311,0.72,129.3,129.25,16.22457439]
[1726661436509,9.49,129.28,129.25,16.22457439]
[1726661437211,9.49,129.27,129.26,3.8674]
[1726661442317,5.63697501,129.27,129.26,3.8674]
[1726661442517,5.63697501,129.27,129.26,7.77301388]
[1726661442822,5.63697501,129.27,129.26,3.8674]
[1726661443223,5.63697501,129.27,129.26,7.76256382]
[1726661443410,5.63697501,129.27,129.26,3.8674]
[1726661444018,5.63697501,129.27,129.26,7.71263575]
[1726661444827,7.14697501,129.27,129.26,7.71263575]
[1726661445524,1.51,129.27,129.26,7.71263575]
[1726661445726,17.65657718,129.36,129.26,3.84523575]
[1726661445934,9.49,129.31,129.27,1.4501]
[1726661446130,9.49,129.31,129.3,3.8661]
[1726661450235,0.9799,129.38,129.32,3.8657]
[1726661450440,9.49,129.33,129.28,9.49]
[1726661450632,9.49,129.33,129.29,1.4523]
[1726661450833,9.49,129.33,129.31,3.8659]
[1726661454136,9.49,129.32,129.31,3.8659]
[1726661454542,9.49,129.32,129.3,3.8661]
[1726661457240,2.5094,129.38,129.3,3.8661]
[1726661457241,10.21,129.31,129.3,3.8661]
[1726661461445,0.72,129.31,129.3,3.8661]
[1726661463654,0.72,129.31,129.29,6.8325]
[1726661465252,0.72,129.31,129.3,3.8663]
[1726661468356,10.21,129.31,129.29,1.4523]
[1726661468650,9.49,129.3,129.26,3.86845811]
[1726661468847,9.49,129.28,129.25,13.83077619]
[1726661469250,9.49,129.28,129.25,17.78711761]
[1726661469445,9.49,129.28,129.27,3.8672]
[1726661471258,9.49,129.29,129.27,3.8672]
[1726661476654,9.49,129.28,129.25,20.25621761]
[1726661476853,9.49,129.26,129.25,16.38851761]
[1726661477555,13.3575,129.26,129.25,16.38851761]
[1726661477854,0.72,129.26,129.25,16.38851761]
[1726661478260,10.21,129.26,129.25,16.38851761]
[1726661479663,0.72,129.26,129.25,16.38851761]
[1726661480364,10.21,129.26,129.25,16.38851761]
[1726661489974,14.0775,129.26,129.25,16.38851761]
[1726661495281,10.21,129.26,129.25,16.38851761]
[1726661496179,14.0775,129.26,129.25,16.38851761]
[1726661497273,3.8678,129.25,129.24,19.28237366]
[1726661497567,9.49,129.25,129.24,19.28237366]
[1726661498083,9.49,129.25,129.24,23.10411361]
[1726661498878,19.93396448,129.33,129.24,23.10411361]
[1726661499071,1.4163,129.31,129.24,23.10411361]
[1726661499280,3.8671,129.28,129.24,23.10411361]
[1726661499475,9.49,129.26,129.24,23.10411361]
[1726661500683,3.8668,129.29,129.24,23.10411361]
[1726661500882,9.49,129.27,129.24,23.10411361]
[1726661501076,9.49,129.27,129.24,26.97211361]
[1726661501273,9.7813,129.26,129.24,26.97211361]
[1726661502485,9.49,129.25,129.24,26.97211361]
[1726661502989,9.49,129.25,129.24,23.10411361]
[1726661504175,10.21,129.25,129.24,23.10411361]
[1726661510476,14.0778,129.25,129.24,23.10411361]
[1726661512383,10.21,129.25,129.24,23.10411361]
[1726661513480,14.0778,129.25,129.24,23.10411361]
[1726661513686,10.21,129.25,129.24,23.10411361]
[1726661516390,14.0778,129.25,129.24,23.10411361]
[1726661516594,0.72,129.25,129.24,23.10411361]
[1726661516791,10.21,129.25,129.24,23.10411361]
[1726661517092,14.0778,129.25,129.24,23.10411361]
[1726661519196,3.8681,129.24,129.23,12.14734595]
[1726661519397,13.3581,129.24,129.23,12.14734595]
[1726661519993,13.3581,129.24,129.23,16.03838405]
[1726661520488,9.49,129.24,129.21,15.61265536]
[1726661520792,13.3587,129.22,129.21,15.61265536]
[1726661520992,13.3587,129.22,129.21,19.5403084]
[1726661521198,14.0887,129.22,129.21,19.5403084]
[1726661522400,10.22,129.22,129.21,19.5403084]
[1726661523800,0.73,129.22,129.21,19.5403084]
[1726661526204,10.22,129.22,129.21,19.5403084]
[1726661527506,16.15664085,129.29,129.21,25.10265536]
[1726661527696,16.15664085,129.29,129.24,9.49]
[1726661527697,9.49,129.29,129.24,9.49]
[1726661527895,9.49,129.3,129.28,3.8668]
[1726661528098,9.49,129.35,129.29,9.49]
[1726661528400,9.49,129.34,129.29,13.28900038]
[1726661528600,9.49,129.34,129.29,9.49]
[1726661529100,9.49,129.33,129.3,3.8662]
[1726661529496,9.49,129.31,129.22,1.3939]
[1726661529808,9.49,129.3,129.26,9.49]
[1726661530001,9.49,129.3,129.26,13.39333224]
[1726661530209,9.49,129.3,129.27,3.867]
[1726661530599,9.49,129.3,129.26,13.39333224]
[1726661530801,9.49,129.3,129.27,3.8672]
[1726661533713,9.49,129.3,129.28,3.8669]
[1726661534211,9.49,129.3,129.27,3.8671]
[1726661535709,9.49,129.3,129.28,3.8669]
[1726661536707,3.8657,129.33,129.29,3.8664]
[1726661536910,13.3557,129.33,129.29,9.49]
[1726661537403,1.4821,129.39,129.29,9.49]
[1726661537611,9.49,129.34,129.29,9.49]
[1726661538113,9.49,129.34,129.31,3.8659]
[1726661540112,9.49,129.33,129.31,3.8659]
[1726661540317,9.49,129.33,129.3,3.8663]
[1726661543209,9.49,129.32,129.29,3.8665]
[1726661548221,9.49,129.33,129.29,13.3565]
[1726661552006,9.49,129.32,129.29,3.8665]
[1726661552813,9.49,129.31,129.28,1.3923]
[1726661553119,9.49,129.3,129.27,1.4156]
[1726661553413,9.49,129.3,129.28,3.8669]
[1726661554416,13.3564,129.3,129.28,3.8669]
[1726661555115,9.49,129.3,129.28,3.8669]
[1726661555323,9.49,129.32,129.29,3.8666]
[1726661555717,3.8661,129.31,129.29,3.8666]
[1726661555917,9.49,129.32,129.29,3.8666]
[1726661556425,9.49,129.3,129.28,3.8668]
[1726661559418,13.3564,129.3,129.27,16.2129]
[1726661559718,13.3564,129.3,129.27,3.8671]
[1726661559719,9.49,129.29,129.27,3.8671]
[1726661562122,13.3568,129.29,129.26,7.77083224]
[1726661562627,13.3568,129.29,129.27,3.8672]
[1726661563424,9.49,129.29,129.27,7.74636827]
[1726661563624,9.49,129.29,129.27,3.8672]
[1726661564226,9.49,129.29,129.27,7.7614593]
[1726661564531,9.49,129.29,129.27,3.8672]
[1726661564930,9.49,129.29,129.27,7.68290856]
[1726661565335,13.3567,129.29,129.27,3.81570856]
[1726661565629,9.49,129.28,129.24,1.4932]
[1726661565828,9.49,129.28,129.24,5.26865645]
[1726661566026,9.49,129.28,129.24,1.4932]
[1726661566219,13.3572,129.28,129.25,3.8677]
[1726661566426,13.3572,129.28,129.25,7.68495118]
[1726661567120,13.3572,129.28,129.25,3.81725118]
[1726661567326,9.49,129.27,129.24,1.4932]
[1726661567933,9.49,129.27,129.24,5.4567327]
[1726661568124,9.49,129.27,129.24,1.4932]
[1726661568434,9.49,129.27,129.25,3.8677]
[1726661569631,9.49,129.27,129.24,3.89215545]
[1726661569821,9.49,129.27,129.22,10.9453]
[1726661570220,13.3574,129.27,129.24,3.868]
[1726661570425,13.3574,129.27,129.24,7.64791151]
[1726661571534,9.49,129.26,129.24,3.77991151]
[1726661571731,9.49,129.26,129.22,10.9453]
[1726661571929,9.49,129.26,129.23,3.8684]
[1726661572122,9.49,129.26,129.23,7.81101328]
[1726661572321,9.49,129.26,129.23,3.8684]
[1726661572935,13.3577,129.26,129.23,7.64493109]
[1726661573937,13.3579,129.25,129.23,3.77653109]
[1726661574137,13.3579,129.25,129.22,3.8686]
[1726661574433,9.49,129.24,129.22,3.8686]
[1726661574629,9.49,129.24,129.21,19.48155536]
[1726661574837,13.3582,129.24,129.21,19.48155536]
[1726661576038,13.3587,129.22,129.21,15.61265536]
[1726661576335,17.51274832,129.34,129.21,15.61265536]
[1726661576336,25.59726403,129.34,129.21,15.61265536]
[1726661576532,9.49,129.22,129.21,15.61265536]
[1726661577541,13.3587,129.23,129.21,15.61265536]
[1726661577733,9.49,129.24,129.21,15.61265536]
[1726661578427,16.03164832,129.33,129.22,9.49]
[1726661578629,9.49,129.27,129.24,9.49]
[1726661578828,9.49,129.27,129.24,17.21053272]
[1726661579433,13.3572,129.27,129.24,17.21053272]
[1726661580333,13.3572,129.27,129.24,7.72053272]
[1726661580742,13.3572,129.27,129.24,3.85253272]
[1726661581040,9.49,129.25,129.23,3.8683]
[1726661581535,9.49,129.25,129.23,7.67696973]
[1726661584938,3.8672,129.28,129.24,3.8681]
[1726661585138,9.49,129.27,129.24,3.8681]
[1726661585338,9.49,129.27,129.23,3.80866973]
[1726661585541,13.3568,129.29,129.24,9.49]
[1726661585945,9.49,129.28,129.24,9.49]
[1726661586432,9.49,129.28,129.25,3.8677]
[1726661587441,9.49,129.28,129.24,9.49]
[1726661587644,9.49,129.27,129.24,3.868]
[1726661588745,9.49,129.25,129.23,3.7921101]
[1726661588946,9.49,129.26,129.21,26.50205536]
[1726661589341,9.49,129.25,129.23,3.8683]
[1726661589544,1.4811,129.34,129.23,7.67289662]
[1726661589743,9.49,129.26,129.23,3.80459662]
[1726661590043,9.49,129.26,129.24,3.8681]
[1726661590248,9.49,129.26,129.24,7.71256167]
[1726661592548,9.49,129.27,129.24,7.71256167]
[1726661594346,9.49,129.27,129.25,3.8677]
[1726661594645,8.30859914,129.34,129.26,9.49]
[1726661594853,13.3553,129.34,129.29,9.49]
[1726661595041,9.49,129.34,129.3,9.49]
[1726661595442,9.49,129.34,129.31,3.8659]
[1726661595742,9.49,129.32,129.31,3.90931554]
[1726661595945,9.49,129.32,129.29,3.8665]
[1726661596146,9.49,129.31,129.29,7.81646097]
[1726661596348,9.49,129.31,129.29,3.8665]
[1726661596950,9.49,129.31,129.29,7.70110538]
[1726661597849,9.49,129.31,129.29,3.83460538]
[1726661598154,14.85,129.32,129.28,3.8669]
[1726661598554,14.85,129.32,129.28,7.7025198]
[1726661598946,18.7159,129.32,129.28,7.7025198]
[1726661605056,14.85,129.32,129.29,3.8666]
[1726661605864,14.85,129.32,129.28,3.8356198]
[1726661606155,14.85,129.32,129.26,1.4594]
[1726661606750,3.8662,129.31,129.27,3.8671]
[1726661607345,18.7159,129.32,129.27,3.8671]
[1726661608958,18.7159,129.32,129.28,3.8668]
[1726661609152,18.7159,129.32,129.28,7.73668149]
[1726661609352,18.7159,129.32,129.28,3.8668]
[1726661609954,18.7159,129.32,129.28,7.69798654]
[1726661613857,14.85,129.32,129.29,3.8666]
[1726661614764,3.8656,129.33,129.29,3.8666]
[1726661620064,9.5,129.31,129.29,3.8666]
[1726661620264,9.5,129.32,129.28,13.33118654]
[1726661620463,9.5,129.35,129.31,9.5]
[1726661620861,13.3651,129.35,129.31,3.8658]
[1726661621267,13.3651,129.35,129.31,7.82438243]
[1726661621462,13.3651,129.35,129.31,3.8658]
[1726661622070,13.3651,129.35,129.31,7.69978188]
[1726661622966,13.3651,129.35,129.32,3.8657]
[1726661623764,13.3651,129.35,129.32,7.69542534]
[1726661624761,9.5,129.35,129.32,7.69542534]
[1726661625375,9.5,129.35,129.33,3.8653]
[1726661626071,1.4346,129.36,129.33,3.8653]
[1726661626467,9.5,129.35,129.33,3.8653]
[1726661628277,9.5,129.35,129.32,17.19532534]
[1726661631878,9.5,129.35,129.33,3.8654]
[1726661632572,9.5,129.37,129.33,13.3654]
[1726661632778,9.5,129.37,129.34,3.8651]
[1726661633879,9.5,129.37,129.33,13.3653]
[1726661634577,9.5,129.37,129.34,3.8651]
[1726661635179,9.5,129.38,129.34,3.8651]
[1726661638175,9.5,129.37,129.34,3.8651]
[1726661639380,9.5,129.37,129.33,13.3653]
[1726661641173,9.5,129.37,129.34,3.8651]
[1726661641784,9.5,129.37,129.33,3.8653]
[1726661642287,9.5,129.35,129.32,3.82972534]
[1726661642582,9.5,129.35,129.31,3.8659]
[1726661642795,9.5,129.35,129.31,7.78920988]
[1726661642984,9.5,129.35,129.31,3.8659]
[1726661643174,9.5,129.35,129.3,9.5]
[1726661643380,9.5,129.35,129.3,13.32535448]
[1726661644176,9.5,129.35,129.31,3.8659]
[1726661646584,9.5,129.35,129.31,13.3659]
[1726661647374,9.5,129.35,129.32,3.8657]
[1726661647682,4.3398,129.42,129.32,3.8657]
[1726661647891,9.5,129.37,129.33,9.5]
[1726661648182,9.5,129.37,129.32,13.3657]
[1726661651583,4.3398,129.42,129.32,3.8657]
[1726661651788,9.5,129.36,129.32,3.8657]
[1726661657501,9.5,129.37,129.32,3.8657]
[1726661657809,9.5,129.37,129.33,9.5]
[1726661659102,9.5,129.37,129.32,3.8657]
[1726661659407,4.3398,129.42,129.32,13.3657]
[1726661659697,9.5,129.37,129.32,13.3657]
[1726661661104,9.5,129.37,129.32,9.5]
[1726661661605,9.5,129.37,129.32,13.3657]
[1726661661896,9.5,129.37,129.32,17.14201685]
[1726661664797,9.5,129.37,129.33,3.8654]
[1726661665309,9.5,129.37,129.33,13.3654]
[1726661665696,9.5,129.35,129.32,3.77631685]
[1726661665900,9.5,129.35,129.3,9.5]
[1726661666201,9.5,129.35,129.31,9.5]
[1726661666697,4.3398,129.42,129.31,9.5]
[1726661666891,4.3398,129.42,129.32,9.5]
[1726661667087,4.3398,129.42,129.34,9.5]
[1726661667302,9.5,129.38,129.34,13.38841197]
[1726661669203,9.5,129.37,129.34,3.88841197]
[1726661669403,9.5,129.37,129.33,9.5]
[1726661669994,9.5,129.37,129.33,13.33068394]
[1726661671397,9.7913,129.37,129.33,13.33068394]
[1726661671701,9.5,129.36,129.33,13.33068394]
[1726661671901,9.5,129.36,129.33,3.83068394]
[1726661672102,9.5,129.36,129.32,13.3656]
[1726661672602,9.5,129.36,129.32,17.24696255]
[1726661673199,9.5,129.35,129.32,7.74696255]
[1726661673403,9.5,129.34,129.32,3.88136255]
[1726661673605,9.5,129.34,129.31,3.8659]
[1726661674104,9.5,129.34,129.31,7.77047413]
[1726661674306,9.5,129.34,129.31,3.8659]
[1726661674910,9.5,129.34,129.31,3.7765236]
[1726661675208,9.5,129.34,129.3,13.3662]
[1726661675607,9.5,129.34,129.3,17.27889818]
[1726661675999,9.5,129.34,129.31,3.866]
[1726661677402,0.2913,129.37,129.32,3.8656]
[1726661677600,0.2913,129.37,129.32,13.3656]
[1726661677801,9.5,129.36,129.32,13.3656]
[1726661678496,9.5,129.36,129.32,9.5]
[1726661678705,0.2913,129.37,129.32,9.5]
[1726661678905,9.7913,129.37,129.32,9.5]
[1726661680015,9.7913,129.37,129.32,13.3655]
[1726661681014,9.5,129.36,129.32,13.3655]
[1726661681207,9.5,129.36,129.3,3.91269818]
[1726661681402,0.2913,129.37,129.3,9.5]
[1726661681403,9.5,129.34,129.3,9.5]
[1726661681701,9.5,129.35,129.3,13.45069983]
[1726661682909,9.5,129.35,129.31,3.8658]
[1726661684717,9.5,129.34,129.31,3.8658]
[1726661685114,9.5,129.34,129.3,7.81699983]
[1726661686311,4.3398,129.42,129.3,7.81699983]
[1726661686312,4.3398,129.42,129.3,3.95069983]
[1726661686507,9.5,129.33,129.29,9.5]
[1726661687021,9.5,129.33,129.29,7.80597349]
[1726661687320,9.5,129.33,129.29,3.93947349]
[1726661687518,9.5,129.33,129.3,3.8663]
[1726661687830,9.5,129.33,129.3,7.82511498]
[1726661688019,9.5,129.33,129.3,3.8663]
[1726661688619,9.5,129.33,129.3,7.78171092]
[1726661688814,9.5,129.34,129.3,3.8663]
[1726661689417,9.5,129.34,129.3,7.75501494]
[1726661689617,9.5,129.34,129.31,3.866]
[1726661690518,9.5,129.34,129.3,3.8662]
[1726661692012,15.74168548,129.41,129.31,13.3659]
[1726661692217,15.74168548,129.41,129.32,9.5]
[1726661692524,9.5,129.36,129.32,13.3657]
[1726661692916,9.5,129.36,129.32,17.15372762]
[1726661694723,9.5,129.36,129.32,7.65372762]
[1726661695221,9.5,129.35,129.32,7.65372762]
[1726661696328,9.5,129.34,129.32,7.65372762]
[1726661698429,9.5,129.34,129.32,3.78802762]
[1726661698729,9.5,129.34,129.31,3.8659]
[1726661699124,9.5,129.34,129.31,7.65595587]
[1726661700525,9.5,129.35,129.32,3.8657]
[1726661700930,9.5,129.35,129.3,9.5]
[1726661701122,9.5,129.35,129.31,3.8659]
[1726661701926,9.5,129.35,129.3,13.40496099]
[1726661702632,9.5,129.35,129.3,17.27106099]
[1726661703127,9.5,129.35,129.31,3.8659]
[1726661705036,9.5,129.33,129.3,7.77116099]
[1726661707533,9.5,129.33,129.3,17.27116099]
[1726661707731,20.06971845,129.42,129.31,3.8658]
[1726661707931,9.5,129.35,129.31,13.3658]
[1726661708329,20.06971845,129.42,129.32,9.5]
[1726661708629,9.5,129.4,129.37,9.5]
[1726661708830,18.67921845,129.42,129.37,9.5]
[1726661709032,18.67921845,129.42,129.38,9.5]
[1726661709033,28.17921845,129.42,129.38,9.5]
[1726661709227,25.22991845,129.42,129.38,9.5]
[1726661709537,9.5,129.42,129.38,13.3638]
[1726661709738,9.5,129.42,129.38,17.2884133]
[1726661711437,9.5,129.42,129.38,7.7884133]
[1726661711738,9.5,129.41,129.38,3.9246133]
[1726661712037,9.5,129.4,129.36,9.5]
[1726661712244,9.5,129.4,129.36,13.3644]
[1726661712538,9.5,129.4,129.36,17.17985877]
[1726661719842,9.5,129.4,129.36,13.31545877]
[1726661720448,1.4652,129.46,129.37,9.5]
[1726661720646,9.5,129.41,129.37,9.5]
[1726661720846,9.5,129.41,129.36,13.31545877]
[1726661721147,9.5,129.4,129.37,3.8642]
[1726661721348,9.5,129.4,129.37,7.63915899]
[1726661726546,9.5,129.41,129.38,3.8639]
[1726661727150,9.5,129.4,129.38,3.8639]
[1726661727740,9.5,129.4,129.37,7.63905899]
[1726661728441,9.5,129.4,129.37,3.77495899]
[1726661728637,9.5,129.39,129.34,9.5]
[1726661729142,9.5,129.39,129.36,3.8644]
[1726661732048,9.5,129.4,129.36,3.8644]
[1726661732343,1.4898,129.47,129.35,9.5]
[1726661732559,9.5,129.4,129.35,9.5]
[1726661732858,9.5,129.4,129.37,3.8642]
[1726661734654,1.4898,129.47,129.38,3.864]
[1726661734853,9.5,129.4,129.36,9.5]
[1726661735160,9.5,129.4,129.37,3.8641]
[1726661744461,9.5,129.4,129.36,13.3645]
[1726661744662,9.5,129.4,129.36,9.5]
[1726661745851,9.5,129.4,129.37,3.8642]
[1726661747158,9.5,129.4,129.36,13.3644]
[1726661747564,9.5,129.39,129.36,3.8644]
[1726661748460,1.4898,129.47,129.37,9.5]
[1726661748762,9.5,129.42,129.37,9.5]
[1726661749567,9.5,129.42,129.38,3.8638]
[1726661751655,9.5,129.41,129.37,3.8641]
[1726661753768,9.5,129.4,129.37,3.8641]
[1726661755868,9.5,129.41,129.38,3.8639]
[1726661756967,9.5,129.41,129.37,3.8641]
[1726661761368,0.2913,129.39,129.37,3.8641]
[1726661762573,0.2913,129.39,129.38,3.864]
[1726661763877,0.2913,129.39,129.38,13.364]
[1726661767778,9.5,129.45,129.38,9.5]
[1726661767976,9.5,129.46,129.42,9.5]
[1726661768173,9.5,129.44,129.39,1.435]
[1726661768381,9.5,129.43,129.4,3.8632]
[1726661769172,9.5,129.43,129.4,7.73962951]
[1726661769374,9.5,129.43,129.4,3.8632]
[1726661769973,9.5,129.43,129.4,7.67506746]
[1726661771484,9.5,129.44,129.4,7.67506746]
[1726661772074,9.5,129.44,129.41,3.863]
[1726661772676,9.5,129.45,129.41,3.863]
[1726661773581,9.5,129.44,129.41,3.863]
[1726661779285,4.3293,129.48,129.41,3.863]
[1726661779491,9.5,129.45,129.41,3.863]
[1726661779693,4.3293,129.48,129.4,3.81186746]
[1726661779895,9.5,129.43,129.39,9.5]
[1726661780093,9.5,129.43,129.39,13.36328514]
[1726661780886,9.5,129.43,129.4,3.8633]
[1726661781290,9.5,129.43,129.39,17.22668514]
[1726661782391,9.5,129.43,129.4,3.8633]
[1726661783286,9.5,129.44,129.4,13.3633]
[1726661786491,9.5,129.44,129.4,3.8633]
[1726661786692,9.5,129.44,129.4,13.3633]
[1726661787294,9.5,129.41,129.39,3.86328514]
[1726661787600,9.5,129.42,129.39,9.5]
[1726661787793,9.5,129.42,129.39,13.45104314]
[1726661788897,9.5,129.42,129.39,17.31454314]
[1726661789703,9.5,129.42,129.39,3.95104314]
[1726661789897,9.5,129.42,129.38,13.3638]
[1726661790699,9.5,129.41,129.38,3.8638]
[1726661790904,20.06986813,129.48,129.33,1.4209]
[1726661791096,9.5,129.37,129.33,10.9209]
[1726661791800,9.5,129.37,129.33,9.5]
[1726661792190,9.5,129.36,129.32,3.93864841]
[1726661792394,9.5,129.36,129.31,11.0161]
[1726661792787,9.5,129.36,129.31,13.3658]
[1726661792998,9.5,129.35,129.31,13.3658]
[1726661798608,1.4349,129.38,129.29,3.8666]
[1726661798805,9.5,129.33,129.29,13.3666]
[1726661800206,9.5,129.33,129.3,3.8663]
[1726661800909,1.4349,129.38,129.31,3.866]
[1726661800910,9.5,129.34,129.31,3.866]
[1726661805999,9.5,129.34,129.3,13.3662]
[1726661807927,9.5,129.34,129.3,9.5]
[1726661808311,9.5,129.33,129.29,13.3665]
[1726661809198,9.5,129.32,129.28,3.8668]
[1726661810113,13.3659,129.32,129.28,3.8668]
[1726661811007,13.3661,129.31,129.28,3.8668]
[1726661811211,9.5,129.3,129.26,128.93639377]
[1726661811414,9.5,129.27,129.25,3.79847469]
[1726661811603,9.5,129.27,129.23,10.9915]
[1726661811914,9.5,129.27,129.24,3.8679]
[1726661812216,13.3673,129.27,129.24,3.77661742]
[1726661812515,9.5,129.25,129.21,15.61265536]
[1726661812714,9.5,129.25,129.23,3.78900104]
[1726661813014,9.5,129.25,129.21,19.41404002]
[1726661813213,9.5,129.25,129.21,28.91404002]
[1726661813412,13.3677,129.26,129.22,9.5]
[1726661814215,9.5,129.26,129.22,13.3686]
[1726661814614,9.5,129.26,129.22,3.8686]
[1726661815919,13.3676,129.26,129.22,3.8686]
[1726661817115,9.5,129.25,129.21,23.28294002]
[1726661817712,9.5,129.24,129.21,19.41404002]
[1726661819216,9.5,129.24,129.21,23.28304002]
[1726661819830,9.5,129.24,129.21,19.41404002]
[1726661820530,3.8676,129.26,129.21,28.91404002]
[1726661820719,13.3676,129.26,129.22,9.5]
[1726661821016,154.84,129.32,129.21,19.41404002]
[1726661821017,9.5,129.28,129.24,9.5]
[1726661821223,13.3671,129.28,129.24,13.3681]
[1726661821621,9.5,129.27,129.23,9.5]
[1726661822021,9.5,129.25,129.21,28.91404002]
[1726661822422,13.3682,129.24,129.21,19.41404002]
[1726661822620,9.5,129.24,129.21,19.41404002]